bitfinex/quotes_SOLUSD_20220118
["timestamp","ask_amount","ask_price","bid_price","bid_amount"]
[1642470406359,1.99595461,141.06,140.99,0.25]
[1642470406763,1.99595461,141.06,140.99,40.68807982]
[1642470406960,44.29011136,141.07,141.0,13.4712]
[1642470407161,44.29011136,141.07,141.0,13.7212]
[1642470407362,44.29011136,141.07,141.0,15.30060635]
[1642470407560,44.29011136,141.07,141.0,4.66540635]
[1642470407766,0.25,141.06,141.0,4.41540635]
[1642470407961,2.836,141.05,141.0,2.00487025]
[1642470408160,13.4744,141.05,141.0,2.00487025]
[1642470408362,2.836,141.05,141.0,2.00487025]
[1642470408665,47.12611136,141.07,141.0,2.00487025]
[1642470408861,47.12611136,141.07,141.01,0.25]
[1642470409163,1.99595461,141.06,141.01,16.4035]
[1642470409463,1.99595461,141.06,141.02,4.41440635]
[1642470409863,1.99595461,141.06,141.03,0.25]
[1642470410063,1.99595461,141.06,141.03,44.36405935]
[1642470410263,12.63045461,141.1,141.03,50.36405935]
[1642470411865,0.25,141.09,141.02,2.835]
[1642470412064,2.835,141.08,141.02,4.83987025]
[1642470412263,10.8868,141.07,141.02,4.83987025]
[1642470412865,36.36677506,141.06,141.02,4.83987025]
[1642470413067,36.36677506,141.06,141.0,12.23487025]
[1642470413368,36.36677506,141.06,141.01,0.25]
[1642470413667,36.36677506,141.06,141.01,3.086]
[1642470413968,10.6368,141.07,141.01,3.086]
[1642470414368,1.99595461,141.08,141.01,3.086]
[1642470414868,47.13397214,141.07,141.01,3.086]
[1642470415066,47.13397214,141.07,141.01,5.09087025]
[1642470415666,57.77017214,141.07,141.01,5.09087025]
[1642470415868,57.77017214,141.07,141.02,35.53789902]
[1642470416067,10.6362,141.07,141.02,35.53789902]
[1642470416271,10.6362,141.07,141.03,0.25]
[1642470418070,10.6353,141.08,141.03,0.25]
[1642470418272,41.40212631,141.09,141.03,0.25]
[1642470419498,52.03682631,141.09,141.03,0.25]
[1642470420496,1.99595461,141.09,141.03,0.25]
[1642470421501,1.99595461,141.09,141.03,10.8833]
[1642470422101,1.99595461,141.1,141.04,1.58399908]
[1642470422298,1.99595461,141.1,141.05,13.315]
[1642470422501,1.99595461,141.1,141.05,22.136]
[1642470422699,1.99595461,141.1,141.05,29.71999908]
[1642470423000,1.99595461,141.1,141.06,50.30450847]
[1642470423199,49.07976842,141.13,141.06,50.30450847]
[1642470423398,49.07976842,141.13,141.07,0.25]
[1642470424700,51.91376842,141.13,141.07,0.25]
[1642470426099,4.82995461,141.13,141.07,0.25]
[1642470427004,4.82995461,141.13,141.07,10.8802]
[1642470427203,1.99595461,141.12,141.07,10.8802]
[1642470427403,1.99595461,141.12,141.07,16.8802]
[1642470427804,35.25205415,141.11,141.07,6.25]
[1642470428206,35.25205415,141.11,141.05,26.8612]
[1642470428406,35.25205415,141.11,141.06,0.25]
[1642470428808,35.25205415,141.11,141.05,26.8612]
[1642470429408,35.25205415,141.11,141.05,16.23]
[1642470429814,37.24800876,141.11,141.05,16.23]
[1642470430015,1.99595461,141.11,141.05,16.23]
[1642470430814,1.99595461,141.11,141.06,0.25]
[1642470431418,1.99595461,141.12,141.06,0.25]
[1642470432918,35.56975832,141.11,141.06,0.25]
[1642470433417,35.56975832,141.11,141.05,16.6318]
[1642470433717,35.56975832,141.11,141.05,10.6318]
[1642470433919,35.56975832,141.11,141.03,50.62467025]
[1642470434120,0.25,141.1,141.04,0.25]
[1642470434319,2.835,141.1,141.04,0.25]
[1642470435420,37.56571293,141.11,141.04,0.25]
[1642470435621,51.03391293,141.11,141.04,0.25]
[1642470435822,0.25,141.1,141.04,0.25]
[1642470436022,48.19891293,141.11,141.04,0.25]
[1642470436222,1.99595461,141.1,141.04,0.25]
[1642470436623,1.99595461,141.1,141.04,47.61402238]
[1642470436825,1.99595461,141.1,141.04,53.61402238]
[1642470437224,48.19891293,141.11,141.04,53.61402238]
[1642470437423,48.19891293,141.11,141.04,56.44902238]
[1642470438249,0.25,141.1,141.04,3.085]
[1642470438448,10.8839,141.1,141.04,0.25]
[1642470438649,10.6339,141.1,141.04,0.25]
[1642470439951,10.6339,141.1,141.03,19.065]
[1642470440151,3.085,141.09,141.03,6.0]
[1642470440351,10.6356,141.08,141.02,2.00487025]
[1642470440950,10.6356,141.08,141.02,40.46702422]
[1642470441352,10.6356,141.08,141.03,0.25]
[1642470441951,58.33640036,141.08,141.03,0.25]
[1642470443653,58.33640036,141.08,141.02,0.25]
[1642470443852,10.6377,141.06,141.01,2.00487025]
[1642470444253,3.086,141.05,141.01,2.00487025]
[1642470444454,37.85003703,141.04,141.01,2.00487025]
[1642470444656,37.85003703,141.04,141.0,2.00487025]
[1642470445659,0.25,141.03,141.0,2.00487025]
[1642470445861,6.06439994,141.02,140.98,2.00487025]
[1642470446060,43.14363991,141.01,140.98,2.00487025]
[1642470446859,0.25,141.03,140.98,2.00487025]
[1642470447059,0.25,141.03,140.97,2.00487025]
[1642470447263,0.25,141.05,140.97,2.25487025]
[1642470447463,2.836,141.04,140.97,2.25487025]
[1642470447661,10.6392,141.03,140.97,2.25487025]
[1642470447861,10.8892,141.03,140.97,2.25487025]
[1642470448666,10.3892,141.03,140.97,2.25487025]
[1642470450363,37.74267961,141.02,140.97,2.25487025]
[1642470452270,13.2252,141.03,140.97,2.25487025]
[1642470453470,10.3892,141.03,140.97,2.25487025]
[1642470455273,10.1392,141.03,140.97,2.25487025]
[1642470455472,23.942,141.04,140.97,2.25487025]
[1642470455671,23.942,141.04,140.98,2.836]
[1642470455873,10.6382,141.05,140.99,0.25]
[1642470456074,10.6382,141.05,140.98,10.23]
[1642470456278,66.57698839,141.07,141.0,38.85308003]
[1642470456676,72.57698839,141.07,141.01,0.25]
[1642470457274,70.58103378,141.07,141.01,0.25]
[1642470457478,70.58103378,141.07,141.0,38.85308003]
[1642470457675,10.887,141.06,141.0,38.85308003]
[1642470459077,13.723,141.06,141.0,38.85308003]
[1642470459577,13.723,141.06,140.99,2.00487025]
[1642470459777,36.6748,141.06,140.99,8.00487025]
[1642470460480,36.6748,141.06,140.99,6.0]
[1642470460880,36.6748,141.06,140.98,62.67392018]
[1642470461082,36.6748,141.06,140.99,0.25]
[1642470461281,36.6748,141.06,140.98,8.00487025]
[1642470461880,36.6748,141.06,140.98,2.00487025]
[1642470462484,38.67075461,141.06,140.98,2.00487025]
[1642470463289,38.67075461,141.06,140.97,4.84087025]
[1642470463483,38.67075461,141.06,140.98,0.25]
[1642470463784,38.67075461,141.06,140.97,8.00487025]
[1642470465217,38.67075461,141.06,140.98,0.25]
[1642470466715,38.67075461,141.06,140.98,2.25487025]
[1642470467615,39.83062973,141.06,140.98,2.00487025]
[1642470467817,45.83062973,141.06,140.98,2.00487025]
[1642470468517,1.99595461,141.05,140.97,4.84087025]
[1642470468817,10.6408,141.02,140.97,4.84087025]
[1642470469016,10.6408,141.02,140.97,2.00487025]
[1642470469818,10.6408,141.02,140.96,2.00487025]
[1642470471620,10.6408,141.02,140.96,39.46024603]
[1642470472219,10.6408,141.02,140.96,2.00487025]
[1642470473222,10.6408,141.02,140.96,43.58437438]
[1642470474822,37.4804,141.04,140.97,0.25]
[1642470475624,37.4804,141.04,140.97,2.25487025]
[1642470476123,34.6444,141.04,140.97,2.25487025]
[1642470476924,0.25,141.03,140.97,2.00487025]
[1642470477126,10.8897,141.03,140.97,2.00487025]
[1642470477725,36.33572428,141.02,140.97,2.00487025]
[1642470478428,36.33572428,141.02,140.96,12.23487025]
[1642470478828,46.97592428,141.02,140.96,12.23487025]
[1642470479232,0.25,141.01,140.96,12.23487025]
[1642470479431,0.25,141.01,140.96,2.00487025]
[1642470479432,3.087,141.01,140.96,2.00487025]
[1642470480334,3.087,141.01,140.94,2.00487025]
[1642470480531,10.6421,141.0,140.94,2.00487025]
[1642470480733,48.37315371,140.99,140.94,2.00487025]
[1642470481530,0.25,140.99,140.94,2.00487025]
[1642470483637,10.8925,140.99,140.92,4.84187025]
[1642470483836,2.837,140.98,140.92,4.84187025]
[1642470484037,2.837,140.98,140.92,2.00487025]
[1642470484235,0.25,140.97,140.92,2.00487025]
[1642470484435,2.837,140.96,140.92,2.00487025]
[1642470484637,0.25,140.97,140.92,46.08414925]
[1642470485238,0.25,140.98,140.92,46.08414925]
[1642470485642,10.6449,140.96,140.92,46.08414925]
[1642470485843,0.25,140.98,140.92,46.08414925]
[1642470486041,28.8705,140.99,140.93,0.25]
[1642470486243,28.8705,140.99,140.92,46.08414925]
[1642470486640,0.25,140.98,140.92,46.08414925]
[1642470486842,10.8935,140.98,140.92,46.08414925]
[1642470487041,10.6435,140.98,140.93,2.837]
[1642470487241,22.8705,140.99,140.92,46.08414925]
[1642470487941,22.8705,140.99,140.93,2.25487025]
[1642470488144,22.8705,140.99,140.93,5.09187025]
[1642470488743,22.8705,140.99,140.94,2.00487025]
[1642470488942,33.5129,140.99,140.94,2.00487025]
[1642470489343,0.25,140.98,140.94,2.00487025]
[1642470490345,36.3499,140.99,140.93,2.00487025]
[1642470490546,10.6424,140.99,140.93,2.00487025]
[1642470490780,13.4785,141.01,140.94,0.25]
[1642470490949,1.99595461,141.02,140.95,2.837]
[1642470491145,1.99595461,141.02,140.95,11.035]
[1642470491350,0.25,141.01,140.96,0.25]
[1642470491646,0.25,141.01,140.96,43.11873729]
[1642470492848,10.8897,141.03,140.96,42.86873729]
[1642470493047,13.7257,141.03,140.96,42.86873729]
[1642470495150,19.7257,141.03,140.96,42.86873729]
[1642470495351,13.7257,141.03,140.96,42.86873729]
[1642470496550,19.7257,141.03,140.96,42.86873729]
[1642470496751,13.7257,141.03,140.96,42.86873729]
[1642470499380,3.086,141.03,140.96,42.86873729]
[1642470499779,0.25,141.03,140.96,47.281142]
[1642470500579,44.39803439,141.03,140.96,47.70960754]
[1642470500783,44.39803439,141.03,140.96,2.00487025]
[1642470501583,50.39803439,141.03,140.95,4.84087025]
[1642470501881,13.4775,141.02,140.96,41.57776722]
[1642470502282,0.25,141.01,140.96,41.57776722]
[1642470503084,0.25,141.01,140.95,2.00487025]
[1642470503584,0.25,141.01,140.98,6.01627487]
[1642470504588,6.06439994,141.0,140.98,6.01627487]
[1642470504887,0.25,140.99,140.98,6.01627487]
[1642470506887,0.25,140.99,140.98,3.15877487]
[1642470507086,0.25,140.99,140.95,2.00487025]
[1642470507286,2.837,140.98,140.94,2.00487025]
[1642470507685,38.30588345,140.97,140.94,2.00487025]
[1642470507888,13.4821,140.96,140.94,2.00487025]
[1642470508286,0.25,140.95,140.94,2.00487025]
[1642470508586,0.25,140.95,140.93,2.837]
[1642470508786,6.06439994,140.94,140.93,2.837]
[1642470509287,43.49703847,140.94,140.93,2.837]
[1642470512189,2.838,140.95,140.93,2.837]
[1642470512387,29.51366726,140.99,140.93,2.837]
[1642470512589,0.25,140.97,140.93,2.837]
[1642470513290,67.37083192,140.99,140.93,2.837]
[1642470513688,65.37487731,140.99,140.93,2.837]
[1642470513887,24.67971265,140.99,140.93,2.837]
[1642470514588,0.25,140.98,140.93,2.837]
[1642470515588,0.25,140.98,140.93,13.4779]
[1642470516996,0.25,140.98,140.93,2.837]
[1642470517193,2.837,140.97,140.93,2.837]
[1642470517493,0.25,140.96,140.92,2.00487025]
[1642470517694,2.838,140.95,140.92,2.00487025]
[1642470517894,0.25,140.94,140.92,2.00487025]
[1642470518095,0.25,140.96,140.92,2.00487025]
[1642470518295,0.25,140.96,140.91,47.26442365]
[1642470518496,10.6465,140.95,140.91,47.26442365]
[1642470518696,13.4845,140.95,140.91,47.26442365]
[1642470518895,0.25,140.94,140.91,47.26442365]
[1642470519095,3.03219997,140.93,140.91,47.26442365]
[1642470519698,2.838,140.96,140.91,47.26442365]
[1642470519897,3.088,140.96,140.91,47.26442365]
[1642470520496,10.6461,140.94,140.91,47.26442365]
[1642470521898,13.7328,140.96,140.91,47.26442365]
[1642470522097,0.70565189,140.93,140.91,47.26442365]
[1642470522300,0.70565189,140.93,140.92,0.25]
[1642470522499,0.70565189,140.93,140.92,8.273]
[1642470522697,7.99595461,140.99,140.92,9.84977916]
[1642470522900,4.83395461,141.0,140.92,19.82977916]
[1642470523100,67.15303432,140.99,140.92,18.253]
[1642470523299,67.15303432,140.99,140.92,10.23]
[1642470523503,0.25,140.98,140.91,2.00487025]
[1642470523705,2.837,140.97,140.91,2.00487025]
[1642470524102,0.25,140.96,140.91,2.00487025]
[1642470524302,2.838,140.95,140.91,2.00487025]
[1642470524533,10.6472,140.94,140.89,2.00487025]
[1642470524703,10.8972,140.94,140.89,2.00487025]
[1642470524902,42.35755164,140.93,140.89,2.00487025]
[1642470525303,0.25,140.94,140.89,2.00487025]
[1642470526307,37.04143986,140.94,140.89,2.00487025]
[1642470526504,10.6472,140.93,140.89,2.00487025]
[1642470527107,11.23524325,140.93,140.89,2.00487025]
[1642470527306,0.58804325,140.93,140.89,2.00487025]
[1642470527506,0.58804325,140.93,140.88,58.72343528]
[1642470528508,0.58804325,140.93,140.88,12.23487025]
[1642470529105,0.58804325,140.93,140.89,2.00487025]
[1642470530821,0.83804325,140.93,140.89,2.00487025]
[1642470531513,11.48464325,140.93,140.88,12.23487025]
[1642470531713,11.48464325,140.93,140.88,2.00487025]
[1642470532540,11.48464325,140.93,140.88,12.23487025]
[1642470533743,11.48464325,140.93,140.88,10.23]
[1642470535045,14.32264325,140.93,140.88,10.23]
[1642470535545,14.32264325,140.93,140.87,2.00487025]
[1642470535745,39.04984325,140.93,140.87,2.00487025]
[1642470535945,39.04984325,140.93,140.87,8.00487025]
[1642470536549,39.04984325,140.93,140.87,2.00487025]
[1642470536749,45.04984325,140.93,140.86,2.00487025]
[1642470537851,45.04984325,140.93,140.87,43.7510517]
[1642470538050,45.04984325,140.93,140.86,2.00487025]
[1642470539552,115.81984325,140.93,140.86,2.00487025]
[1642470539754,117.81579786,140.93,140.84,2.00487025]
[1642470541556,117.81579786,140.93,140.82,2.00487025]
[1642470541557,1.99595461,140.92,140.82,2.00487025]
[1642470541757,10.6531,140.89,140.82,41.34014483]
[1642470541956,45.60395739,140.88,140.82,2.00487025]
[1642470542156,45.85395739,140.88,140.82,2.00487025]
[1642470542360,51.85395739,140.88,140.82,2.00487025]
[1642470542760,51.85395739,140.88,140.82,8.00487025]
[1642470542959,51.85395739,140.88,140.82,2.00487025]
[1642470543158,51.85395739,140.88,140.82,8.00487025]
[1642470543660,10.6529,140.87,140.82,8.00487025]
[1642470543860,0.25,140.86,140.82,8.00487025]
[1642470544065,51.85395739,140.88,140.82,8.00487025]
[1642470544259,23.3873,140.89,140.83,44.52682197]
[1642470544459,2.84,140.9,140.83,51.42982197]
[1642470544659,10.6494,140.9,140.83,51.42982197]
[1642470544862,4.83495461,140.91,140.84,0.25]
[1642470545061,1.99595461,140.91,140.85,2.839]
[1642470545269,50.39467626,140.91,140.85,2.839]
[1642470545464,48.39872165,140.91,140.84,2.839]
[1642470545863,54.39872165,140.91,140.84,2.839]
[1642470546664,65.04702165,140.91,140.84,4.84387025]
[1642470546965,0.58598041,140.9,140.84,4.84387025]
[1642470547163,0.83598041,140.9,140.84,4.84387025]
[1642470547865,11.48498041,140.9,140.84,4.84387025]
[1642470549169,0.83598041,140.9,140.84,4.84387025]
[1642470549369,0.58598041,140.9,140.84,15.49147025]
[1642470549975,0.58598041,140.9,140.84,25.72147025]
[1642470550173,45.73550803,140.9,140.85,2.00487025]
[1642470551190,45.73550803,140.9,140.84,25.72147025]
[1642470551392,45.73550803,140.9,140.84,15.07387025]
[1642470553492,56.38480803,140.9,140.84,15.07387025]
[1642470554895,0.25,140.89,140.84,15.07387025]
[1642470555095,13.7392,140.89,140.84,12.23487025]
[1642470555494,13.7392,140.89,140.84,18.23487025]
[1642470555797,13.7392,140.89,140.84,12.23487025]
[1642470556495,13.7392,140.89,140.84,10.23]
[1642470556693,3.089,140.89,140.84,10.23]
[1642470557093,0.5846047,140.88,140.84,10.23]
[1642470557697,48.54604167,140.88,140.84,10.23]
[1642470558295,48.54604167,140.88,140.84,12.23487025]
[1642470559196,48.54604167,140.88,140.84,10.23]
[1642470559397,48.54604167,140.88,140.84,20.8775]
[1642470560199,48.54604167,140.88,140.84,22.88237025]
[1642470560598,48.54604167,140.88,140.84,12.23487025]
[1642470561199,48.54604167,140.88,140.84,10.23]
[1642470561602,0.5846047,140.88,140.84,10.23]
[1642470562202,0.83804471,140.9,140.84,22.88247025]
[1642470562404,0.83804471,140.9,140.84,28.51847025]
[1642470562602,0.58804471,140.9,140.84,28.51847025]
[1642470562805,0.58804471,140.9,140.85,0.25]
[1642470563003,0.58804471,140.9,140.86,13.069]
[1642470563405,0.58804471,140.9,140.87,10.8947]
[1642470563606,0.58804471,140.9,140.87,18.0427]
[1642470563808,1.99595461,140.93,140.88,54.05863939]
[1642470564105,3.87599785,140.97,140.89,73.608]
[1642470564307,1.93385379,140.96,140.9,10.23]
[1642470564505,1.93385379,140.96,140.91,13.4797]
[1642470565506,39.2652654,140.98,140.91,13.4797]
[1642470565806,0.25,140.97,140.91,10.6417]
[1642470566006,0.25,140.97,140.91,20.8717]
[1642470566606,0.25,140.97,140.91,10.23]
[1642470566807,2.838,140.96,140.91,10.23]
[1642470567612,2.838,140.96,140.91,16.23]
[1642470567813,2.838,140.96,140.91,10.23]
[1642470568013,0.25,140.95,140.91,10.23]
[1642470568313,2.838,140.96,140.91,16.23]
[1642470569218,3.23519246,140.97,140.91,16.23]
[1642470570541,0.25,140.96,140.91,16.23]
[1642470571543,10.8944,140.96,140.91,16.23]
[1642470571743,2.838,140.95,140.91,16.23]
[1642470572143,0.25,140.94,140.91,16.23]
[1642470572543,6.06439994,140.93,140.91,16.23]
[1642470572742,35.84331314,140.92,140.91,16.23]
[1642470572944,35.84331314,140.92,140.91,10.23]
[1642470573443,35.59331314,140.92,140.91,10.23]
[1642470576947,35.98706901,140.92,140.91,10.23]
[1642470580454,35.98706901,140.92,140.88,10.6446]
[1642470580657,35.98706901,140.92,140.89,10.48]
[1642470580855,35.98706901,140.92,140.89,16.48]
[1642470581257,35.98706901,140.92,140.89,16.23]
[1642470585163,6.06439994,140.91,140.87,26.5214]
[1642470585358,9.15239994,140.91,140.87,2.838]
[1642470585759,9.15239994,140.91,140.83,14.27742234]
[1642470585962,31.76439994,140.91,140.83,14.27742234]
[1642470586962,0.39238055,140.9,140.84,0.25]
[1642470587661,11.04118055,140.9,140.84,0.25]
[1642470587864,41.60212808,140.89,140.84,0.25]
[1642470590666,41.60212808,140.89,140.83,19.069]
[1642470592067,0.39100483,140.88,140.83,16.23]
[1642470594171,0.39100483,140.88,140.83,26.8783]
[1642470595174,0.39100483,140.88,140.84,1.83217118]
[1642470595371,0.39100483,140.88,140.85,20.8766]
[1642470595573,0.39100483,140.88,140.86,0.25]
[1642470595797,0.39100483,140.88,140.86,3.089]
[1642470595999,0.39100483,140.88,140.87,10.23]
[1642470596203,0.39100483,140.88,140.87,15.83]
[1642470596401,0.39100483,140.88,140.87,22.08]
[1642470597001,24.55374485,140.93,140.87,22.08]
[1642470597401,0.39444485,140.93,140.87,22.08]
[1642470597602,0.39444485,140.93,140.88,0.25]
[1642470598401,0.39444485,140.93,140.88,10.48]
[1642470598601,0.39444485,140.93,140.89,47.55415502]
[1642470598804,0.39444485,140.93,140.9,10.48]
[1642470599004,4.485e-05,140.93,140.9,20.76727936]
[1642470599301,4.485e-05,140.93,140.91,1.57827936]
[1642470599502,3.87599785,140.98,140.92,10.23]
[1642470599905,14.51879785,140.98,140.92,16.23]
[1642470600206,50.00045474,140.97,140.92,10.23]
[1642470600401,50.00045474,140.97,140.92,16.23]
[1642470600603,0.25,140.96,140.92,16.23]
[1642470601605,2.838,140.99,140.93,0.25]
[1642470602004,0.99023192,140.95,140.93,0.25]
[1642470602204,0.99023192,140.95,140.93,3.088]
[1642470602607,0.99023192,140.95,140.93,9.088]
[1642470602805,4.02243189,140.95,140.93,9.088]
[1642470603007,4.02243189,140.95,140.93,8.838]
[1642470603208,3.03219997,140.94,140.93,8.838]
[1642470603406,4.02243189,140.95,140.93,8.838]
[1642470603806,4.02243189,140.95,140.94,0.25]
[1642470604110,0.99023192,140.95,140.94,10.48]
[1642470604306,0.99023192,140.95,140.94,16.48]
[1642470604907,6.71299785,141.02,140.95,48.09278589]
[1642470605111,6.71299785,141.02,140.96,10.23]
[1642470605309,3.87599785,141.02,140.98,44.94402009]
[1642470605511,3.87599785,141.02,140.99,2.836]
[1642470605709,3.87599785,141.02,140.99,10.48]
[1642470605911,3.87599785,141.02,140.99,16.23]
[1642470606109,3.87599785,141.03,140.99,16.23]
[1642470606711,0.25,141.02,140.99,16.23]
[1642470606913,2.836,141.01,140.99,16.23]
[1642470607112,3.086,141.02,140.99,16.23]
[1642470607311,2.836,141.03,140.99,16.23]
[1642470608114,29.79449785,141.06,140.99,16.23]
[1642470608911,43.80490617,141.05,140.99,16.23]
[1642470609314,0.25,141.04,140.99,16.23]
[1642470609511,0.25,141.04,140.99,26.8664]
[1642470609714,43.80490617,141.05,140.99,26.8664]
[1642470609911,39.92890832,141.05,140.99,26.79664734]
[1642470610211,25.9185,141.06,140.99,26.79664734]
[1642470611212,0.25,141.05,140.99,26.79664734]
[1642470611813,62.76791673,141.06,140.99,26.79664734]
[1642470612212,0.25,141.05,140.99,26.79664734]
[1642470612412,0.25,141.05,140.99,16.16024734]
[1642470613314,2.836,141.04,140.99,16.16024734]
[1642470613514,42.67999481,141.03,140.99,16.16024734]
[1642470613916,42.67999481,141.03,140.99,6.0]
[1642470614418,53.31919481,141.03,140.99,6.0]
[1642470614815,2.836,141.02,140.99,6.0]
[1642470615017,42.67999481,141.03,140.97,62.46704127]
[1642470615419,42.67999481,141.03,140.97,64.0443267]
[1642470616018,2.836,141.05,140.97,64.0443267]
[1642470616219,0.25,141.04,140.97,64.0443267]
[1642470616622,0.25,141.04,140.98,10.6371]
[1642470617021,0.25,141.04,140.98,12.21438543]
[1642470620024,0.25,141.04,140.98,22.44438543]
[1642470620323,0.25,141.04,140.98,12.21438543]
[1642470620722,0.25,141.04,140.96,1.57728543]
[1642470620922,2.836,141.03,140.97,10.23]
[1642470621325,0.25,141.02,140.97,10.23]
[1642470621723,10.8899,141.02,140.97,10.23]
[1642470621923,42.38325963,141.0,140.97,10.23]
[1642470622826,3.03219997,140.99,140.97,10.23]
[1642470623023,6.06439994,140.99,140.97,10.23]
[1642470628936,0.25,140.98,140.94,10.23]
[1642470629139,3.087,140.98,140.94,10.23]
[1642470629437,0.25,140.98,140.93,2.836]
[1642470629659,2.837,140.97,140.93,2.836]
[1642470629860,30.17292236,140.96,140.93,2.836]
[1642470630257,0.25,140.95,140.93,2.836]
[1642470630758,25.5271,141.01,140.93,2.836]
[1642470631162,0.25,141.0,140.93,2.836]
[1642470631362,0.25,141.0,140.92,2.837]
[1642470631562,0.25,141.0,140.92,3.087]
[1642470631763,41.67172341,141.0,140.92,3.087]
[1642470631962,52.31312341,141.0,140.93,10.6407]
[1642470632164,52.31312341,141.0,140.92,2.837]
[1642470632463,2.837,140.99,140.92,36.6345418]
[1642470632766,0.25,140.98,140.92,36.6345418]
[1642470632963,0.25,140.98,140.91,13.067]
[1642470633162,0.25,140.98,140.92,10.6415]
[1642470633363,0.25,140.98,140.91,13.067]
[1642470633764,2.837,140.97,140.91,13.067]
[1642470633964,35.54249348,140.96,140.91,13.067]
[1642470634163,35.79249348,140.96,140.91,10.23]
[1642470634367,0.25,140.95,140.91,10.23]
[1642470634767,8.567,140.95,140.91,10.23]
[1642470635769,5.729,140.95,140.91,10.23]
[1642470635968,0.25,140.95,140.91,10.23]
[1642470636568,46.18679348,140.96,140.91,10.23]
[1642470636768,2.838,140.98,140.91,58.69142728]
[1642470637668,13.4814,140.98,140.91,10.23]
[1642470637868,0.25,140.97,140.91,10.23]
[1642470638068,2.838,140.96,140.91,10.23]
[1642470638269,0.25,140.95,140.91,10.23]
[1642470638475,2.838,140.94,140.91,10.23]
[1642470638669,6.06439994,140.93,140.91,10.23]
[1642470638870,6.31439994,140.93,140.91,10.23]
[1642470639069,31.59585524,140.92,140.91,10.23]
[1642470639671,31.84585524,140.92,140.91,10.23]
[1642470640171,31.59585524,140.92,140.91,10.23]
[1642470640773,6.06439994,140.93,140.91,10.23]
[1642470641775,0.25,140.92,140.91,10.23]
[1642470641975,0.25,140.92,140.91,0.51277428]
[1642470642175,3.088,140.92,140.87,10.23]
[1642470642576,13.7353,140.92,140.87,10.23]
[1642470644781,13.7353,140.92,140.84,10.23]
[1642470644980,36.3135,140.92,140.84,10.23]
[1642470645782,33.64626773,140.89,140.82,2.838]
[1642470645983,2.839,140.88,140.82,2.838]
[1642470646182,3.089,140.88,140.82,2.838]
[1642470646783,38.5989,140.88,140.82,2.838]
[1642470647986,38.5989,140.88,140.81,0.2629]
[1642470648183,35.2285,140.87,140.81,0.2629]
[1642470648413,3.09,140.86,140.81,0.2629]
[1642470648913,36.39167476,140.85,140.81,0.2629]
[1642470649314,0.25,140.84,140.81,0.2629]
[1642470649616,3.03219997,140.83,140.81,0.2629]
[1642470649816,6.06439994,140.83,140.81,0.2629]
[1642470650617,24.5755,140.87,140.81,3.1029]
[1642470650817,0.25,140.86,140.81,3.1029]
[1642470651016,0.25,140.86,140.81,37.56334639]
[1642470652018,10.9009,140.87,140.81,0.2629]
[1642470652219,0.25,140.87,140.81,0.2629]
[1642470653222,13.4919,140.86,140.81,0.2629]
[1642470653421,35.87957663,140.86,140.81,0.2629]
[1642470653620,0.25,140.85,140.81,0.2629]
[1642470654523,13.7425,140.85,140.81,0.2629]
[1642470656026,37.7881,140.85,140.81,0.2629]
[1642470657324,24.2956,140.85,140.81,0.2629]
[1642470657926,0.25,140.85,140.81,0.2629]
[1642470658327,0.25,140.87,140.81,12.48600297]
[1642470658528,2.84,140.86,140.82,48.15097352]
[1642470658829,26.49773209,140.89,140.82,48.15097352]
[1642470659028,0.25,140.85,140.83,1.57340297]
[1642470659229,0.25,140.85,140.82,45.31097352]
[1642470659429,0.25,140.85,140.81,0.2629]
[1642470659430,6.06439994,140.84,140.81,0.2629]
[1642470659832,0.25,140.83,140.81,0.2629]
[1642470660533,47.26820479,140.83,140.81,0.2629]